lending/lending_fUSD_20250819
["ID","MTS","AMOUNT","RATE_DAILY","PERIOD"]
[380253793,1755629064011,-589.11,0.00022999,30]
[380253794,1755629064047,-2577.22,0.00022999,30]
[380253795,1755629064084,-400.0,0.00022999,30]
[380253796,1755629064123,-3698.99,0.00022999,30]
[380253797,1755629064162,-400.0,0.00022999,30]
[380253798,1755629064199,-400.0,0.00022999,30]
[380253799,1755629064235,-400.0,0.00022999,30]
[380253800,1755629064271,-400.0,0.00022999,30]
[380253801,1755629064311,-400.0,0.00022999,30]
[380253802,1755629064360,-400.0,0.00022999,30]
[380253803,1755629064407,-412.32,0.00022999,30]
[380253804,1755629064448,-2726.08,0.00022999,30]
[380253805,1755629064485,-400.0,0.00022999,30]
[380253806,1755629064520,-481.92,0.00022999,30]
[380253807,1755629064553,-890.73,0.00022999,30]
[380253808,1755629064588,-400.0,0.00022999,30]
[380253809,1755629064623,-3831.53,0.00022999,30]
[380253810,1755629064660,-2801.87,0.00022999,30]
[380253811,1755629064696,-2249.93,0.00022999,30]
[380253812,1755629064731,-2300.83,0.00022999,30]
[380253813,1755629064764,-901.47,0.00022999,30]
[380253814,1755629064798,-400.0,0.00022999,30]
[380253815,1755629064832,-517.3,0.00022999,30]
[380253816,1755629064865,-2580.07,0.00022999,30]
[380253817,1755629064898,-1232.22,0.00022999,30]
[380253818,1755629064933,-620.09,0.00022999,30]
[380253819,1755629064968,-400.0,0.00022999,30]
[380253820,1755629065010,-299.40253282,0.00022999,30]
[380253821,1755629065046,-1076.14,0.00022999,30]
[380253822,1755629065084,-400.0,0.00022999,30]
[380253823,1755629065124,-1476.73,0.00022999,30]
[380253824,1755629065163,-2866.23,0.00022999,30]
[380253825,1755629065204,-2226.33,0.00022999,30]
[380253826,1755629065244,-516.16,0.00022999,30]
[380253827,1755629065281,-2909.45,0.00022999,30]
[380253828,1755629065319,-417.49,0.00022999,30]
[380253829,1755629065354,-738.05,0.00022999,30]
[380253830,1755629065391,-2711.37,0.00022999,30]
[380253831,1755629065427,-1045.72,0.00022999,30]
[380253832,1755629065462,-2324.34,0.00022999,30]
[380253833,1755629065498,-1877.74,0.00022999,30]
[380253834,1755629065536,-400.0,0.00022999,30]
[380253835,1755629065576,-2730.48,0.00022999,30]
[380253836,1755629065944,-1016.22,0.00022999,30]
[380253837,1755629065982,-400.0,0.00022999,30]
[380253838,1755629066018,-2291.38,0.00022999,30]
[380253839,1755629066053,-778.49,0.00022999,30]
[380253840,1755629066094,-2691.17,0.00022999,30]
[380253841,1755629066132,-1422.87,0.00022999,30]
[380253842,1755629066168,-524.11,0.00022999,30]
[380253843,1755629066207,-927.54,0.00022999,30]
[380253844,1755629066246,-400.0,0.00022999,30]
[380253845,1755629066285,-400.0,0.00022999,30]
[380253846,1755629066322,-400.0,0.00022999,30]
[380253847,1755629066362,-400.0,0.00022999,30]
[380253848,1755629066399,-400.0,0.00022999,30]
[380253849,1755629066435,-2528.82,0.00022999,30]
[380253850,1755629066472,-400.0,0.00022999,30]
[380253851,1755629066508,-400.0,0.00022999,30]
[380253852,1755629066543,-414.97,0.00022999,30]
[380253853,1755629066583,-971.34,0.00022999,30]
[380253854,1755629066618,-400.0,0.00022999,30]
[380253855,1755629066654,-400.0,0.00022999,30]
[380253856,1755629066692,-400.0,0.00022999,30]
[380253857,1755629066731,-683.04,0.00022999,30]
[380253858,1755629066770,-423.14,0.00022999,30]
[380253859,1755629066808,-400.0,0.00022999,30]
[380253860,1755629066844,-2865.0,0.00022999,30]
[380253861,1755629066889,-400.0,0.00022999,30]
[380253862,1755629066923,-400.0,0.00022999,30]
[380253863,1755629066959,-999.1,0.00022999,30]
[380253864,1755629066996,-1124.55,0.00022999,30]
[380253865,1755629067032,-605.9,0.00022999,30]
[380253866,1755629067075,-2153.28,0.00022999,30]
[380253867,1755629067116,-400.0,0.00022999,30]
[380253868,1755629067162,-400.0,0.00022999,30]
[380253869,1755629067205,-1616.79,0.00022999,30]
[380253870,1755629067243,-885.89,0.00022999,30]
[380253871,1755629067277,-1407.75,0.00022999,30]
[380253872,1755629067312,-1407.75,0.00022999,30]
[380253873,1755629067348,-1407.75,0.00022999,30]
[380253874,1755629067384,-1407.75,0.00022999,30]
[380253875,1755629067420,-686.44,0.00022999,30]
[380253876,1755629067456,-1407.75,0.00022999,30]
[380253877,1755629067490,-1407.75,0.00022999,30]
[380253878,1755629067525,-1407.75,0.00022999,30]
[380253879,1755629067561,-1407.75,0.00022999,30]
[380253880,1755629067599,-1407.75,0.00022999,30]
[380253881,1755629067640,-400.0,0.00022999,30]
[380253882,1755629067679,-400.0,0.00022999,30]
[380253883,1755629067716,-1407.75,0.00022999,30]
[380253884,1755629067754,-1588.45,0.00022999,30]
[380253885,1755629067791,-1407.75,0.00022999,30]
[380253886,1755629067830,-1407.75,0.00022999,30]
[380253887,1755629067866,-1407.75,0.00022999,30]
[380253888,1755629067905,-1407.75,0.00022999,30]
[380253889,1755629067948,-400.0,0.00022999,30]
[380253890,1755629067999,-1407.75,0.00022999,30]
[380253891,1755629068049,-1407.75,0.00022999,30]
[380253892,1755629068094,-1407.75,0.00022999,30]
[380253893,1755629068136,-1407.75,0.00022999,30]
[380253894,1755629068176,-1407.75,0.00022999,30]
[380253895,1755629068218,-1407.75,0.00022999,30]
[380253896,1755629068260,-1407.75,0.00022999,30]
[380253897,1755629068302,-1050.38,0.00022999,30]
[380253898,1755629068344,-1407.75,0.00022999,30]
[380253899,1755629068385,-3234.59,0.00022999,30]
[380253900,1755629068424,-1407.75,0.00022999,30]
[380253901,1755629068461,-400.0,0.00022999,30]
[380253902,1755629068499,-1407.93,0.00022999,30]
[380253903,1755629068540,-1985.28,0.00022999,30]
[380253904,1755629068588,-2483.52,0.00022999,30]
[380253905,1755629068628,-1953.14,0.00022999,30]
[380253906,1755629068665,-571.11,0.00022999,30]
[380253907,1755629068701,-466.93,0.00022999,30]
[380253908,1755629068736,-2645.54,0.00022999,30]
[380253909,1755629068771,-546.14247185,0.00022999,30]
[380253910,1755629068806,-1068.6,0.00022999,30]
[380253911,1755629068840,-400.0,0.00022999,30]
[380253912,1755629068875,-226.4448724,0.00022999,30]
[380253913,1755629068909,-400.0,0.00022999,30]
[380253914,1755629068944,-400.0,0.00022999,30]
[380253915,1755629068980,-333.41313365,0.00022999,30]
[380253916,1755629069017,-400.0,0.00022999,30]
[380253917,1755629069053,-811.68,0.00022999,30]
[380253918,1755629069087,-400.0,0.00022999,30]
[380253919,1755629069124,-2809.03,0.00022999,30]
[380253920,1755629069161,-400.0,0.00022999,30]
[380253921,1755629069199,-2624.47,0.00022999,30]
[380253922,1755629069238,-2228.54,0.00022999,30]
[380253923,1755629069274,-813.56,0.00022999,30]
[380253924,1755629069308,-2300.33,0.00022999,30]
[380253925,1755629069342,-3003.62,0.00022999,30]
[380253926,1755629069376,-400.0,0.00022999,30]
[380253927,1755629069413,-2301.51,0.00022999,30]
[380253928,1755629069448,-400.0,0.00022999,30]
[380253929,1755629069481,-400.0,0.00022999,30]
[380253930,1755629069516,-500.57,0.00022999,30]
[380253931,1755629069551,-692.41,0.00022999,30]
[380253932,1755629069586,-1189.99,0.00022999,30]
[380253933,1755629069621,-400.0,0.00022999,30]
[380253934,1755629069657,-400.0,0.00022999,30]
[380253935,1755629069694,-599.25,0.00022999,30]
[380253936,1755629069728,-1362.73,0.00022999,30]
[380253937,1755629069762,-3776.88,0.00022999,30]
[380253938,1755629069794,-1736.1,0.00022999,30]
[380253939,1755629069829,-2884.91,0.00022999,30]
[380253940,1755629069861,-186.8966941,0.00022999,30]
[380253941,1755629069893,-802.61,0.00022999,30]
[380253942,1755629069927,-1120.55,0.00022999,30]
[380253943,1755629069960,-400.0,0.00022999,30]
[380253944,1755629069995,-409.37,0.00022999,30]
[380253945,1755629070030,-750.01,0.00022999,30]
[380253946,1755629070063,-992.99,0.00022999,30]
[380253947,1755629070096,-1589.16,0.00022999,30]
[380253948,1755629070134,-3308.32,0.00022999,30]
[380253949,1755629070173,-400.0,0.00022999,30]
[380253950,1755629070214,-2462.65,0.00022999,30]
[380253951,1755629070630,-407.06,0.00022999,30]
[380253952,1755629070674,-400.0,0.00022999,30]
[380253953,1755629070716,-629.5,0.00022999,30]
[380253954,1755629070755,-3568.81,0.00022999,30]
[380253955,1755629070793,-400.0,0.00022999,30]
[380253956,1755629070832,-400.0,0.00022999,30]
[380253957,1755629070865,-2621.71,0.00022999,30]
[380253958,1755629070899,-400.0,0.00022999,30]
[380253959,1755629070932,-6189.35,0.00022999,30]
[380253960,1755629070964,-1108.24,0.00022999,30]
[380253961,1755629070996,-447.08,0.00022999,30]
[380253962,1755629071033,-407.77,0.00022999,30]
[380253963,1755629071074,-2481.74,0.00022999,30]
[380253964,1755629071115,-400.0,0.00022999,30]
[380253965,1755629071157,-1078.74,0.00022999,30]
[380253966,1755629071194,-477.60151184,0.00022999,30]
[380253967,1755629071232,-2882.3,0.00022999,30]
[380253968,1755629071266,-400.0,0.00022999,30]
[380253969,1755629071300,-1957.9,0.00022999,30]
[380253970,1755629071333,-2055.74,0.00022999,30]
[380253971,1755629071366,-533.85350207,0.00022999,30]
[380253972,1755629071399,-2231.5,0.00022999,30]
[380253973,1755629071434,-400.0,0.00022999,30]
[380253974,1755629071471,-3161.03,0.00022999,30]
[380253975,1755629071509,-400.0,0.00022999,30]
[380253976,1755629071548,-400.0,0.00022999,30]
[380253977,1755629071589,-485.67,0.00022999,30]
[380253978,1755629071626,-400.0,0.00022999,30]
[380253979,1755629071660,-400.0,0.00022999,30]
[380253980,1755629071696,-400.0,0.00022999,30]
[380253981,1755629071731,-2119.56,0.00022999,30]
[380253982,1755629071766,-827.21,0.00022999,30]
[380253983,1755629071801,-1874.82,0.00022999,30]
[380253984,1755629071834,-698.76,0.00022999,30]
[380253985,1755629071866,-585.57,0.00022999,30]
[380253986,1755629071901,-20036.13,0.00022999,30]
[380253987,1755629071935,-400.0,0.00022999,30]
[380253988,1755629071978,-400.0,0.00022999,30]
[380253989,1755629072014,-400.0,0.00022999,30]
[380253990,1755629072049,-400.0,0.00022999,30]
[380253991,1755629072083,-1129.01,0.00022999,30]
[380253992,1755629072117,-2219.7,0.00022999,30]
[380253993,1755629072155,-3603.39,0.00022999,30]
[380253994,1755629072191,-3737.69,0.00022999,30]
[380253995,1755629072226,-629.33,0.00022999,30]
[380253996,1755629072265,-400.0,0.00022999,30]
[380253997,1755629072300,-2404.39,0.00022999,30]
[380253998,1755629072334,-400.0,0.00022999,30]
[380253999,1755629072369,-1917.36,0.00022999,30]
[380254000,1755629072404,-400.0,0.00022999,30]
[380254001,1755629072436,-2366.75,0.00022999,30]
[380254002,1755629072469,-400.0,0.00022999,30]
[380254003,1755629072504,-400.0,0.00022999,30]
[380254004,1755629072537,-1426.86,0.00022999,30]
[380254005,1755629072571,-400.0,0.00022999,30]
[380254006,1755629072604,-400.0,0.00022999,30]
[380254007,1755629072636,-1562.6,0.00022999,30]
[380254008,1755629072670,-3071.04,0.00022999,30]
[380254009,1755629072707,-953.9,0.00022999,30]
[380254010,1755629072742,-663.54,0.00022999,30]
[380254011,1755629072777,-1582.29,0.00022999,30]
[380254012,1755629072812,-1455.03,0.00022999,30]
[380254013,1755629072845,-2493.28,0.00022999,30]
[380254014,1755629072882,-2717.22,0.00022999,30]
[380254015,1755629072917,-778.64,0.00022999,30]
[380254016,1755629072955,-1378.54,0.00022999,30]
[380254017,1755629072989,-1537.49,0.00022999,30]
[380254018,1755629073025,-1248.22,0.00022999,30]
[380254019,1755629073061,-1288.09,0.00022999,30]
[380254020,1755629073097,-905.04,0.00022999,30]
[380254021,1755629073133,-400.0,0.00022999,30]
[380254022,1755629073172,-1089.65,0.00022999,30]
[380254023,1755629073214,-400.0,0.00022999,30]
[380254024,1755629073256,-2269.41,0.00022999,30]
[380254025,1755629073301,-1925.93,0.00022999,30]
[380254026,1755629073348,-960.39,0.00022999,30]
[380254027,1755629073393,-400.0,0.00022999,30]
[380254028,1755629073437,-1379.79,0.00022999,30]
[380254029,1755629073481,-2631.1,0.00022999,30]
[380254030,1755629073528,-1502.07,0.00022999,30]
[380254031,1755629073574,-2221.64,0.00022999,30]
[380254032,1755629073619,-1644.06,0.00022999,30]
[380254033,1755629073664,-3136.86,0.00022999,30]
[380254034,1755629073713,-400.0,0.00022999,30]
[380254035,1755629073758,-400.0,0.00022999,30]
[380254036,1755629073802,-1011.83,0.00022999,30]
[380254037,1755629073846,-4761.39,0.00022999,30]
[380254038,1755629073888,-400.0,0.00022999,30]
[380254039,1755629073930,-725.39,0.00022999,30]
[380254040,1755629073975,-2245.53,0.00022999,30]
[380254041,1755629074018,-2888.33,0.00022999,30]
[380254042,1755629074063,-1602.46,0.00022999,30]
[380254043,1755629074108,-3036.59,0.00022999,30]
[380254044,1755629074157,-400.0,0.00022999,30]
[380254045,1755629074205,-668.52,0.00022999,30]
[380254046,1755629074248,-400.0,0.00022999,30]
[380254047,1755629074291,-507.13,0.00022999,30]
[380254048,1755629074335,-400.0,0.00022999,30]
[380254049,1755629074376,-1967.75,0.00022999,30]
[380254050,1755629074421,-760.12,0.00022999,30]
[380254051,1755629074462,-487.4,0.00022999,30]
[380254052,1755629074503,-841.58,0.00022999,30]
[380254053,1755629074542,-799.86,0.00022999,30]
[380254054,1755629074584,-400.0,0.00022999,30]
[380254055,1755629074626,-1041.8,0.00022999,30]
[380254056,1755629074666,-1897.7,0.00022999,30]
[380254057,1755629074710,-483.27,0.00022999,30]
[380254058,1755629074750,-1087.92,0.00022999,30]
[380254059,1755629074792,-508.07,0.00022999,30]
[380254060,1755629074833,-400.0,0.00022999,30]
[380254061,1755629074871,-400.0,0.00022999,30]
[380254062,1755629074908,-1483.63,0.00022999,30]
[380254063,1755629074944,-2483.41,0.00022999,30]
[380254064,1755629074982,-726.4,0.00022999,30]
[380254065,1755629075021,-959.25,0.00022999,30]
[380254066,1755629075336,-1063.98,0.00022999,30]
[380254067,1755629075373,-3254.87,0.00022999,30]
[380254068,1755629075407,-2817.12,0.00022999,30]
[380254069,1755629075439,-817.23,0.00022999,30]
[380254070,1755629075471,-400.0,0.00022999,30]
[380254071,1755629075503,-400.0,0.00022999,30]
[380254072,1755629075537,-1992.45,0.00022999,30]
[380254073,1755629075572,-2745.7,0.00022999,30]
[380254074,1755629075605,-497.4,0.00022999,30]
[380254075,1755629075639,-400.0,0.00022999,30]
[380254076,1755629075672,-2692.75,0.00022999,30]
[380254077,1755629075707,-400.0,0.00022999,30]
[380254078,1755629075739,-845.17,0.00022999,30]
[380254079,1755629075772,-400.0,0.00022999,30]
[380254080,1755629075806,-815.15,0.00022999,30]
[380254081,1755629075839,-2514.32,0.00022999,30]
[380254082,1755629075872,-682.32,0.00022999,30]
[380254083,1755629075903,-1020.1,0.00022999,30]
[380254084,1755629075936,-400.0,0.00022999,30]
[380254085,1755629075969,-2374.4,0.00022999,30]
[380254086,1755629076004,-475.85,0.00022999,30]
[380254087,1755629076041,-1193.47,0.00022999,30]
[380254088,1755629076081,-400.0,0.00022999,30]
[380254089,1755629076123,-618.54,0.00022999,30]
[380254090,1755629076160,-1246.9,0.00022999,30]
[380254091,1755629076201,-2008.99,0.00022999,30]
[380254092,1755629076238,-404.08,0.00022999,30]
[380254093,1755629076274,-400.0,0.00022999,30]
[380254094,1755629076309,-400.0,0.00022999,30]
[380254095,1755629076344,-455.76,0.00022999,30]
[380254096,1755629076379,-2235.77,0.00022999,30]
[380254097,1755629076414,-1258.44,0.00022999,30]
[380254098,1755629076448,-2593.0,0.00022999,30]
[380254099,1755629076482,-518.8,0.00022999,30]
[380254100,1755629076516,-1668.91,0.00022999,30]
[380254101,1755629076550,-2375.7,0.00022999,30]
[380254102,1755629076585,-1530.33,0.00022999,30]
[380254103,1755629076620,-400.0,0.00022999,30]
[380254104,1755629076654,-1449.9,0.00022999,30]
[380254105,1755629076688,-2901.01,0.00022999,30]
[380254106,1755629076723,-1806.06,0.00022999,30]
[380254107,1755629076757,-400.0,0.00022999,30]
[380254108,1755629076791,-400.0,0.00022999,30]
[380254109,1755629076824,-2506.8,0.00022999,30]
[380254110,1755629076857,-479.42,0.00022999,30]
[380254111,1755629076890,-1626.69,0.00022999,30]
[380254112,1755629076924,-5575.65,0.00022999,30]
[380254113,1755629076957,-1122.01,0.00022999,30]
[380254114,1755629076990,-400.0,0.00022999,30]
[380254115,1755629077025,-400.0,0.00022999,30]
[380254116,1755629077059,-508.45,0.00022999,30]
[380254117,1755629077093,-400.0,0.00022999,30]
[380254118,1755629077128,-2258.93,0.00022999,30]
[380254119,1755629077166,-3447.3,0.00022999,30]
[380254120,1755629077203,-400.0,0.00022999,30]
[380254121,1755629077241,-747.04,0.00022999,30]
[380254122,1755629077275,-3215.58,0.00022999,30]
[380254123,1755629077311,-1152.46,0.00022999,30]
[380254124,1755629077346,-688.78,0.00022999,30]
[380254125,1755629077381,-468.02,0.00022999,30]
[380254126,1755629077416,-4226.84,0.00022999,30]
[380254127,1755629077450,-4696.98,0.00022999,30]
[380254128,1755629077484,-2565.54,0.00022999,30]
[380254129,1755629077519,-1375.95,0.00022999,30]
[380254130,1755629077553,-400.0,0.00022999,30]
[380254131,1755629077587,-400.0,0.00022999,30]
[380254132,1755629077620,-854.41,0.00022999,30]
[380254133,1755629077655,-1269.08,0.00022999,30]
[380254134,1755629077689,-3001.66,0.00022999,30]
[380254135,1755629077722,-400.0,0.00022999,30]
[380254136,1755629077756,-422.22,0.00022999,30]
[380254137,1755629077789,-912.65,0.00022999,30]
[380254138,1755629077823,-735.52,0.00022999,30]
[380254139,1755629077856,-457.56,0.00022999,30]
[380254140,1755629077888,-400.0,0.00022999,30]
[380254141,1755629077920,-415.51,0.00022999,30]
[380254142,1755629077952,-2756.48,0.00022999,30]
[380254143,1755629077986,-3789.17,0.00022999,30]
[380254144,1755629078020,-2771.67,0.00022999,30]
[380254145,1755629078053,-1065.52,0.00022999,30]
[380254146,1755629078087,-400.0,0.00022999,30]
[380254147,1755629078124,-400.0,0.00022999,30]
[380254148,1755629078163,-400.0,0.00022999,30]
[380254149,1755629078201,-557.86,0.00022999,30]
[380254150,1755629078238,-770.1,0.00022999,30]
[380254151,1755629078272,-400.0,0.00022999,30]
[380254152,1755629078307,-400.0,0.00022999,30]
[380254153,1755629078340,-400.0,0.00022999,30]
[380254154,1755629078374,-400.0,0.00022999,30]
[380254155,1755629078408,-1299.07,0.00022999,30]
[380254156,1755629078443,-771.06,0.00022999,30]
[380254157,1755629078478,-624.09,0.00022999,30]
[380254158,1755629078512,-400.0,0.00022999,30]
[380254159,1755629078547,-2501.02,0.00022999,30]
[380254160,1755629078582,-1171.27,0.00022999,30]
[380254161,1755629078615,-1755.44,0.00022999,30]
[380254162,1755629078648,-400.0,0.00022999,30]
[380254163,1755629078683,-4121.18,0.00022999,30]
[380254164,1755629078718,-400.0,0.00022999,30]
[380254165,1755629078750,-1079.68,0.00022999,30]
[380254166,1755629078784,-963.44,0.00022999,30]
[380254167,1755629078818,-400.0,0.00022999,30]
[380254168,1755629078852,-905.05,0.00022999,30]
[380254169,1755629078886,-400.0,0.00022999,30]
[380254170,1755629078920,-400.0,0.00022999,30]
[380254171,1755629078953,-4098.05,0.00022999,30]
[380254172,1755629078987,-400.0,0.00022999,30]
[380254173,1755629079020,-2225.67,0.00022999,30]
[380254174,1755629079053,-571.33,0.00022999,30]
[380254175,1755629079087,-992.04,0.00022999,30]
[380254176,1755629079124,-1377.29,0.00022999,30]
[380254177,1755629079160,-2162.82,0.00022999,30]
[380254178,1755629079197,-1596.83,0.00022999,30]
[380254179,1755629079232,-400.0,0.00022999,30]
[380254180,1755629079549,-2642.17,0.00022999,30]
[380254181,1755629079588,-684.78,0.00022999,30]
[380254182,1755629079626,-2673.45,0.00022999,30]
[380254183,1755629079663,-400.0,0.00022999,30]
[380254184,1755629079705,-400.0,0.00022999,30]
[380254185,1755629079744,-2984.26,0.00022999,30]
[380254186,1755629079786,-2212.91,0.00022999,30]
[380254187,1755629079822,-667.0,0.00022999,30]
[380254188,1755629079855,-667.0,0.00022999,30]
[380254189,1755629079888,-667.0,0.00022999,30]
[380254190,1755629079922,-4244.7,0.00022999,30]
[380254191,1755629079956,-667.0,0.00022999,30]
[380254192,1755629079991,-667.0,0.00022999,30]
[380254193,1755629080025,-667.0,0.00022999,30]
[380254194,1755629080064,-667.0,0.00022999,30]
[380254195,1755629080104,-5027.44,0.00022999,30]
[380254196,1755629080145,-400.0,0.00022999,30]
[380254197,1755629080185,-667.0,0.00022999,30]
[380254198,1755629080226,-400.0,0.00022999,30]
[380254199,1755629080263,-667.0,0.00022999,30]
[380254200,1755629080298,-667.0,0.00022999,30]
[380254201,1755629080335,-667.0,0.00022999,30]
[380254202,1755629080371,-667.0,0.00022999,30]
[380254203,1755629080406,-1272.67,0.00022999,30]
[380254204,1755629080439,-667.0,0.00022999,30]
[380254205,1755629080472,-667.0,0.00022999,30]
[380254206,1755629080506,-667.0,0.00022999,30]
[380254207,1755629080539,-667.0,0.00022999,30]
[380254208,1755629080577,-2588.67,0.00022999,30]
[380254209,1755629080615,-667.0,0.00022999,30]
[380254210,1755629080652,-667.0,0.00022999,30]
[380254211,1755629080713,-667.0,0.00022999,30]
[380254212,1755629080753,-400.0,0.00022999,30]
[380254213,1755629080790,-891.88,0.00022999,30]
[380254214,1755629080827,-667.0,0.00022999,30]
[380254215,1755629080861,-667.0,0.00022999,30]
[380254216,1755629080895,-1020.39,0.00022999,30]
[380254217,1755629080929,-667.0,0.00022999,30]
[380254218,1755629080964,-667.0,0.00022999,30]
[380254219,1755629080996,-406.51,0.00022999,30]
[380254220,1755629081031,-568.3,0.00022999,30]
[380254221,1755629081070,-400.0,0.00022999,30]
[380254222,1755629081107,-2900.8,0.00022999,30]
[380254223,1755629081150,-2142.09,0.00022999,30]
[380254224,1755629081189,-2305.52,0.00022999,30]
[380254225,1755629081228,-987.76,0.00022999,30]
[380254226,1755629081265,-400.0,0.00022999,30]
[380254227,1755629081302,-400.0,0.00022999,30]
[380254228,1755629081342,-1159.4,0.00022999,30]
[380254229,1755629081385,-400.0,0.00022999,30]
[380254230,1755629081422,-667.10490401,0.00022999,30]
[380254231,1755629081458,-2952.94,0.00022999,30]
[380254232,1755629081494,-940.46,0.00022999,30]
[380254233,1755629081530,-926.35,0.00022999,30]
[380254234,1755629081566,-400.0,0.00022999,30]
[380254235,1755629081602,-1853.03,0.00022999,30]
[380254236,1755629081638,-1550.89,0.00022999,30]
[380254237,1755629081673,-496.38,0.00022999,30]
[380254238,1755629081709,-510.88093416,0.00022999,30]
[380254239,1755629081745,-2197.21,0.00022999,30]
[380254240,1755629081780,-1745.83,0.00022999,30]
[380254241,1755629081817,-917.06,0.00022999,30]
[380254242,1755629081852,-400.0,0.00022999,30]
[380254243,1755629081888,-799.24,0.00022999,30]
[380254244,1755629081922,-400.0,0.00022999,30]
[380254245,1755629081957,-2393.4,0.00022999,30]
[380254246,1755629081993,-10655.14,0.00022999,30]
[380254247,1755629082028,-3881.88,0.00022999,30]
[380254248,1755629082068,-400.0,0.00022999,30]
[380254249,1755629082106,-1026.89,0.00022999,30]
[380254250,1755629082145,-1936.62,0.00022999,30]
[380254251,1755629082184,-1371.64,0.00022999,30]
[380254252,1755629082223,-300.0,0.00022999,30]
[380254253,1755629082259,-1054.77,0.00022999,30]
[380254254,1755629082295,-400.0,0.00022999,30]
[380254255,1755629082332,-751.43,0.00022999,30]
[380254256,1755629082370,-7278.51,0.00022999,30]
[380254257,1755629082409,-400.0,0.00022999,30]
[380254258,1755629082448,-400.0,0.00022999,30]
[380254259,1755629082487,-693.91,0.00022999,30]
[380254260,1755629082525,-400.0,0.00022999,30]
[380254261,1755629082563,-3204.43,0.00022999,30]
[380254262,1755629082599,-2993.7,0.00022999,30]
[380254263,1755629082638,-400.0,0.00022999,30]
[380254264,1755629082674,-400.0,0.00022999,30]
[380254265,1755629082709,-1038.88,0.00022999,30]
[380254266,1755629082748,-400.0,0.00022999,30]
[380254267,1755629082785,-979.8,0.00022999,30]
[380254268,1755629082825,-400.0,0.00022999,30]
[380254269,1755629082863,-3505.7,0.00022999,30]
[380254270,1755629082900,-400.0,0.00022999,30]
[380254271,1755629082935,-2071.3,0.00022999,30]
[380254272,1755629082972,-400.0,0.00022999,30]
[380254273,1755629083009,-2353.75,0.00022999,30]
[380254274,1755629083046,-1426.25,0.00022999,30]
[380254275,1755629083085,-3635.54,0.00022999,30]
[380254276,1755629083126,-2025.49,0.00022999,30]
[380254277,1755629083168,-1050.38,0.00022999,30]
[380254278,1755629083209,-2743.31,0.00022999,30]
[380254279,1755629083250,-422.35,0.00022999,30]
[380254280,1755629083292,-582.29,0.00022999,30]
[380254281,1755629083334,-400.0,0.00022999,30]
[380254282,1755629083375,-400.0,0.00022999,30]
[380254283,1755629083416,-2739.64,0.00022999,30]
[380254284,1755629083456,-400.0,0.00022999,30]
[380254285,1755629083496,-2169.39,0.00022999,30]
[380254286,1755629083535,-400.0,0.00022999,30]
[380254287,1755629083576,-2329.67,0.00022999,30]
[380254288,1755629083617,-2112.39,0.00022999,30]
[380254289,1755629083657,-400.0,0.00022999,30]
[380254290,1755629083698,-3884.95,0.00022999,30]
[380254291,1755629083736,-2426.46,0.00022999,30]
[380254292,1755629083772,-1405.4,0.00022999,30]